Cogmind - Beta 14 @@@ ROGUE MODE // 2025.01.12 @ 23:16:44 Player: lazy_engineer Result: Destroyed by Y-45 Defender with Beam Rifle Performance ------------- Evolutions (0) 0 Regions Visited (4) 800 Robots Destroyed (23) 115 Value Destroyed (666) 666 Prototype IDs (0) 0 Alien Tech Used (0) 0 Bonus (-79) -79 TOTAL SCORE: 1502 Bonus ------- Friendly Fire -79 Cogmind --------- Core Integrity 0/250 Matter 240/300 Energy 121/125 System Corruption 3% Temperature Warm (134) Movement Treading (160) Location -8/Recycling Parts ------- > --- POWER (1) -------- Light Ion Engine > --- PROPULSION (2) --- Light Treads Light Treads > --- UTILITY (2) ------ Scrap Shield > --- WEAPON (2) ------- Barrage Gun Slug Cannon > --- INVENTORY (5) ---- Light Treads High-capacity Matter Pod (200) Structural Scanner Heavy Assault Rifle Subdweller Machine Gun Peak State ------------ > --- POWER ------------ Light Ion Engine > --- PROPULSION ------- Light Treads Light Treads > --- UTILITY ---------- Scrap Shield > --- WEAPON ----------- Barrage Gun Slug Cannon > --- INVENTORY -------- Light Treads High-capacity Matter Pod Structural Scanner Subdweller Machine Gun Grenade Launcher [Rating: 14] Favorites ----------- Power Light Ion Engine Engine Light Ion Engine Propulsion Light Treads Treads Light Treads Utility Scrap Shield Storage Medium Storage Unit Protection Scrap Shield Weapon Grenade Launcher Ballistic Gun Makeshift Shrapnel Gun Ballistic Cannon Slug Cannon Launcher Grenade Launcher Build | -11 -10 -10 -10 -8 ------- Run | Yrd Mat Min Sub Rec Slots Evolved . | . . . . . Power . | . . . . . Propulsion . | . . . . . Utility . | . . . . . Weapon . | . . . . . Parts Attached 25 | 4 6 3 12 . Power 2 | . 1 . 1 . Engine 2 | . 1 . 1 . Core . | . . . . . Reactor . | . . . . . Propulsion 8 | 2 2 1 3 . Treads 8 | 2 2 1 3 . Leg . | . . . . . Wheel . | . . . . . Hover . | . . . . . Flight . | . . . . . Utility 5 | . 3 . 2 . Device . | . . . . . Storage 2 | . 2 . . . Processor . | . . . . . Hackware . | . . . . . Protection 3 | . 1 . 2 . Artifact . | . . . . . Weapon 10 | 2 . 2 6 . Energy Gun . | . . . . . Energy Cannon . | . . . . . Ballistic Gun 7 | 2 . 1 4 . Ballistic Cannon 1 | . . . 1 . Launcher 2 | . . 1 1 . Special Weapon . | . . . . . Impact Weapon . | . . . . . Slashing Weapon . | . . . . . Piercing Weapon . | . . . . . Special Melee Weapon . | . . . . . Unidentified Prototypes . | . . . . . Parts Lost . | . . . . . Power . | . . . . . Propulsion . | . . . . . Utility . | . . . . . Weapon . | . . . . . Highest Loss Streak . | . . . . . To Critical Strikes . | . . . . . Average Slot Usage (%) 87 | . 95 100 85 85 Engine 14 | . 14 14 14 14 Treads 28 | . 28 28 28 28 Storage 3 | . 14 14 . . Protection 13 | . 9 14 14 14 Ballistic Gun 15 | . 28 16 14 14 Ballistic Cannon 3 | . . . 2 14 Launcher 9 | . . 11 10 . Peak Build Rating 14 | 4 8 11 14 14 Average Rating 11 | 3 7 9 11 14 On Entrance 7 | . 4 8 11 14 Naked Turns . | . . . . . Heaviest Build 31 | 2 20 23 31 31 Greatest Support 40 | 3 40 40 40 40 Greatest Overweight (x) . | . . . . . Average Overweight (x) . | . . . . . Largest Inventory Capacity 10 | 5 10 10 10 5 Average Capacity 6 | 5 9 10 5 5 Most Carried 10 | 5 10 10 10 5 Average Carried 5 | 2 7 10 4 4 Final Capacity 10 | 5 10 10 5 5 Final Carried 10 | 5 10 10 5 5 Class Distribution -------------------- 78% | Mutant 21% | Scavenger-Mutant Dominant Class ---------------- Mutant | -10/Materials Mutant | -10/Mines Mutant | -10/Subcaves Scavenger-Mutant | -8/Recycling Resources | -11 -10 -10 -10 -8 ----------- Run | Yrd Mat Min Sub Rec Matter Collected 1229 | 213 194 92 591 139 Remotely . | . . . . . Salvage Created 749 | 53 167 92 348 89 Parts 50 | 3 14 4 27 2 Haulers Intercepted 1 | . 1 . . . Recyclers Shooed . | . . . . . Parts Field Recycled . | . . . . . Retrieved Matter . | . . . . . Parts Self-Destructed 23 | . . . 23 . Prevented . | . . . . . Kills | -11 -10 -10 -10 -8 ------- Run | Yrd Mat Min Sub Rec Combat Hostiles Destroyed 19 | . 3 2 13 1 Guns 11 | . 3 2 5 1 AOE 8 | . . . 8 . Classes Destroyed 10 | 1 5 . 3 1 Builder 1 | . 1 . . . Hauler 1 | . 1 . . . Recycler 1 | 1 . . . . Watcher 1 | . 1 . . . Swarmer 5 | . 1 . 4 . Grunt 4 | . 2 2 . . Sentry 1 | . . . 1 . Programmer 1 | . . . . 1 Artisan 2 | . . . 2 . Subdweller 8 | . . . 8 . Best Kill Streak 2 | 1 2 2 2 1 Combat Bots Only 2 | . 2 2 2 1 Max Kills in Single Turn 2 | 1 1 1 2 1 Gunslinging . | . . . . . Exploded 1 | . . . 1 . Melee . | . . . . . Uniques/NPCs Destroyed . | . . . . . Combat | -11 -10 -10 -10 -8 -------- Run | Yrd Mat Min Sub Rec Hostile Shots Fired 122 | . 24 28 46 24 Missed 31 | . 5 3 17 6 Damage Taken 1833 | . 224 327 1008 274 Core 255 | . 69 53 72 61 Absorbed by Shields . | . . . . . Core Remaining (%) 100 | 100 . . . . Volleys Fired 107 | 2 18 14 67 6 Largest 2 | 2 2 2 2 2 Hottest 76 | 40 40 40 71 76 Shots Fired 172 | 4 36 28 92 12 Gun 122 | 4 36 28 48 6 Cannon 24 | . . . 18 6 Launcher 26 | . . . 26 . Special . | . . . . . Kinetic 146 | 4 36 28 66 12 Thermal . | . . . . . Explosive 26 | . . . 26 . Electromagnetic . | . . . . . Robot Hit Streak 12 | 3 6 11 12 3 Robot Miss Streak 5 | . 5 4 4 2 Penetration Max . | . . . . . Secondary Targets 1 | . 1 . . . Max Gunslinging Chain 1 | . 1 . . . Shots Hit Robots 106 | 3 24 21 52 6 Core Hits 58 | 2 14 6 33 3 Critical Kills 1 | . . . 1 . Critical Parts Destroyed 2 | . 1 . . 1 Critical Strikes 4 | . 1 . 2 1 Destroy 4 | . 1 . 2 1 Melee Attacks . | . . . . . Impact . | . . . . . Slashing . | . . . . . Piercing . | . . . . . Sneak Attacks . | . . . . . Combat Hostiles . | . . . . . Follow-up Attacks . | . . . . . Damage Inflicted 2462 | 29 210 184 1848 191 Guns 947 | 28 198 173 434 114 Cannons 297 | . . . 220 77 Explosions 1194 | . . . 1194 . Melee . | . . . . . Ramming 24 | 1 12 11 . . Kinetic 1244 | 28 198 173 654 191 Thermal . | . . . . . Explosive 1194 | . . . 1194 . Electromagnetic . | . . . . . Impact . | . . . . . Slashing . | . . . . . Piercing . | . . . . . Highest Corruption 3 | . . . . 3 Average Corruption 2 | . . . . 2 Corruption Purged . | . . . . . Corruption Blocked . | . . . . . Overload Shots . | . . . . . Overflow Damage . | . . . . . Projectiles . | . . . . . Explosions . | . . . . . Melee . | . . . . . Knockbacks 4 | . . . 3 1 Impact . | . . . . . Kinetic 4 | . . . 3 1 Secondary . | . . . . . Self-Inflicted Damage 135 | . . . 135 . Shots 8 | . . . 8 . Rammed 5 | 1 1 3 . . Targets Rammed 6 | 1 2 3 . . Kicked . | . . . . . Crushed 1 | . 1 . . . Highest Temperature 181 | . 21 125 . 181 Average Temperature 60 | . 8 67 . 112 Received Heat Transfer 528 | . 90 198 186 54 Siege Activations . | . . . . . Robots Corrupted . | . . . . . Combat Hostiles . | . . . . . Parts Fried . | . . . . . Impact Corruptions . | . . . . . Robots Melted . | . . . . . Combat Hostiles . | . . . . . Parts Melted 1 | . . . 1 . Heat Transferred . | . . . . . Parts Sabotaged . | . . . . . Parts Stolen . | . . . . . Parts Stripped . | . . . . . Power Chain Reactions . | . . . . . Alert | -11 -10 -10 -10 -8 ------- Run | Yrd Mat Min Sub Rec Peak Influence 133 | 5 133 101 . 47 Initial 51 | . 3 51 . . Average 60 | 1 90 72 . 13 Maximum Alert Level . | . . . . . Low Security (%) 100 | 100 100 100 . 100 Level 1 . | . . . . . Level 2 . | . . . . . Level 3 . | . . . . . Level 4 . | . . . . . Level 5 . | . . . . . High Security . | . . . . . Max Security . | . . . . . Squads Dispatched 1 | . 1 . . . Investigation 1 | . 1 . . . Extermination . | . . . . . Reinforcement . | . . . . . Assault . | . . . . . Garrison . | . . . . . Intercept . | . . . . . Searches Triggered . | . . . . . Construction Impeded . | . . . . . Haulers Reinforced . | . . . . . Active Scanning Responses . | . . . . . Cargo Convoy Interrupts . | . . . . . Stealth | -11 -10 -10 -10 -8 --------- Run | Yrd Mat Min Sub Rec Distress Signals . | . . . . . Communications Jammed . | . . . . . Distress Signals . | . . . . . Times Spotted 40 | . 9 2 27 2 Peak Tracking Total 6 | . 3 2 6 2 Tactical Retreats 3 | . . . 3 . Traps | -11 -10 -10 -10 -8 ------- Run | Yrd Mat Min Sub Rec Traps Triggered 3 | . . . 3 . Indirectly . | . . . . . Trap Hack Attempts . | . . . . . Triggered . | . . . . . Disarmed . | . . . . . Reprogrammed . | . . . . . Reused . | . . . . . Traps Extracted . | . . . . . Installed . | . . . . . Triggered . | . . . . . Machines | -11 -10 -10 -10 -8 ---------- Run | Yrd Mat Min Sub Rec Machines Disabled . | . . . . . Max in Single Turn . | . . . . . Machines Repaired . | . . . . . Machines Dismantled . | . . . . . Machines Sabotaged . | . . . . . Overloaded Fab Kills . | . . . . . Hacking | -11 -10 -10 -10 -8 --------- Run | Yrd Mat Min Sub Rec Machines Accessed 8 | . 4 . . 4 Terminals 8 | . 4 . . 4 Fabricators . | . . . . . Repair Stations . | . . . . . Recycling Units . | . . . . . Scanalyzers . | . . . . . Garrison Access . | . . . . . Total Hacks 27 | . 14 . . 13 Successful 9 | . 3 . . 6 Failed 18 | . 11 . . 7 Catastrophic 4 | . 2 . . 2 Database Lockouts . | . . . . . Manual 26 | . 13 . . 13 Terminals 27 | . 14 . . 13 Fabricators . | . . . . . Repair Stations . | . . . . . Recycling Units . | . . . . . Scanalyzers . | . . . . . Garrison Access . | . . . . . Terminal Hacks 3 | . 1 . . 2 Terminal Index 1 | . . . . 1 Zone Layout 2 | . 1 . . 1 Fabricator Hacks . | . . . . . Repair Station Hacks . | . . . . . Recycling Unit Hacks . | . . . . . Scanalyzer . | . . . . . Garrison Access Hacks . | . . . . . Unauthorized Hacks 6 | . 2 . . 4 Terminals 6 | . 2 . . 4 Track 1 | . . . . 1 Botnet 3 | . 1 . . 2 Operators 2 | . 1 . . 1 Fabricators . | . . . . . Repair Stations . | . . . . . Recycling Units . | . . . . . Scanalyzers . | . . . . . Garrison Access . | . . . . . Data Cores Recovered . | . . . . . Used . | . . . . . Hacking Detections 8 | . 4 . . 4 Full Trace Events 1 | . 1 . . . Feedback Events . | . . . . . Feedback Blocked . | . . . . . Robot Schematics Acquired . | . . . . . Robots Built . | . . . . . Authchips . | . . . . . Time . | . . . . . Total Robot Build Rating . | . . . . . Part Schematics Acquired . | . . . . . Parts Built . | . . . . . Authchips . | . . . . . Time . | . . . . . Total Part Build Rating . | . . . . . Parts Repaired . | . . . . . Time . | . . . . . Parts Recycled . | . . . . . Recycled Matter . | . . . . . Retrieved Matter . | . . . . . Retrieved Components . | . . . . . Parts Scanalyzed . | . . . . . Part Schematics Acquired . | . . . . . Parts Damaged . | . . . . . Bothacking | -11 -10 -10 -10 -8 ------------ Run | Yrd Mat Min Sub Rec Used RIF Installer . | . . . . . Robots Hacked . | . . . . . Non-combat . | . . . . . Combat . | . . . . . Robot Hacks Applied . | . . . . . Relay Couplers Released . | . . . . . Fabnet Peak Effective % . | . . . . . Robots Rewired . | . . . . . Allies Hacked . | . . . . . Hacks Repelled . | . . . . . Allies | -11 -10 -10 -10 -8 -------- Run | Yrd Mat Min Sub Rec Total Allies . | . . . . . Largest Group . | . . . . . Highest-Rated Group . | . . . . . Highest-Rated Ally . | . . . . . Total Orders . | . . . . . Ally Attacks . | . . . . . Total Damage . | . . . . . Kills . | . . . . . Allies Corrupted . | . . . . . Allies Melted . | . . . . . Intel | -11 -10 -10 -10 -8 ------- Run | Yrd Mat Min Sub Rec Robot Analysis Total . | . . . . . Derelict Logs Recovered 4 | . . 2 2 . Drone Launches . | . . . . . Drone Recoveries . | . . . . . Exploration | -11 -10 -10 -10 -8 ------------- Run | Yrd Mat Min Sub Rec Turns Passed 4218 | 52 394 537 2907 328 Spaces Moved 2375 | 63 206 291 1642 173 Core 66 | 63 3 . . . Treads 2309 | . 203 291 1642 173 Legs . | . . . . . Wheels . | . . . . . Hover . | . . . . . Flight . | . . . . . Fastest Speed 50 | 50 50 160 160 160 Average Speed 156 | 50 158 160 160 160 Slowest Speed 160 | 50 160 160 160 160 Overloaded Moves . | . . . . . Propulsion Burnouts . | . . . . . Robots Hopped . | . . . . . Cave-ins Triggered . | . . . . . Exploration Rate (%) 38 | 5 32 49 62 46 Regions Visited 4 Branch Regions 3 Pre-discovered Areas 4 | . . 1 3 . Known Exits Taken . | . . . . . Unknown Exits Taken 4 | 1 1 1 1 . Scrap Searched 4 | . . . 4 . Spaces Dug . | . . . . . Terrain Destroyed 144 | . . . 142 2 Melee . | . . . . . Projectile 7 | . . . 5 2 AOE 137 | . . . 137 . Terrain Rammed . | . . . . . Walls Destroyed . | . . . . . Machines Disabled . | . . . . . Actions | -11 -10 -10 -10 -8 --------- Run | Yrd Mat Min Sub Rec Total 2703 | 79 243 338 1829 214 Wait 124 | 1 . 27 71 25 Move 2371 | 62 205 290 1641 173 Hop . | . . . . . Pick Up 28 | 9 10 . 8 1 Fast Attach 3 | . . . 3 . Attach 8 | 4 3 . 1 . Detach . | . . . . . Swap 14 | . 3 3 8 . Drop 17 | . 2 1 13 1 Fire 107 | 2 18 14 67 6 Melee . | . . . . . Ram 1 | 1 . . . . Kick . | . . . . . Crush 5 | . 2 3 . . Escape Stasis . | . . . . . Rewire 8 | . . . . 8 Trap . | . . . . . Miscellaneous 17 | . . . 17 . Route ------- -11/Scrapyard -10/Materials -10/Mines (discovered 2 exits: [*Mat] / [*Sub]) -10/Subcaves (discovered 3 exits: [*Mat x2] / *Rec) -8/Recycling History --------- Turn | Location | Event 4 | -11/Scrapyard | Discovered new exit (range 14) 53 | -11/Scrapyard | Entered Materials 313 | -10/Materials | Build established: Mutant 391 | -10/Materials | Discovered new exit (range 15) 447 | -10/Materials | Entered Mines 501 | -10/Mines | Learned location of Zion (-7) 505 | -10/Mines | Learned Materials stockpile data 663 | -10/Mines | A weapon hastily lodged in a ceiling crevice suddenly fell to the ground 729 | -10/Mines | Discovered new exit (range 12) 875 | -10/Mines | Assembled infested the area 948 | -10/Mines | Discovered new exit (range 3) 984 | -10/Mines | Entered Subcaves 1037 | -10/Subcaves | Core integrity fell below 50% 1101 | -10/Subcaves | Ambushed by swarm of Subdwellers 1126 | -10/Subcaves | Ambushed by Subdweller buried in earth 1202 | -10/Subcaves | A swath of the cavern ceiling suddenly collapsed 1261 | -10/Subcaves | Met a Zionite searching for "candidates" 1306 | -10/Subcaves | Discovered new exit (range 16) 1339 | -10/Subcaves | Disturbed a concealed Subdweller 2057 | -10/Subcaves | Discovered new exit (range 8) 2066 | -10/Subcaves | Learned location of Storage (-8) 2268 | -10/Subcaves | Discovered new exit (range 7) 2809 | -10/Subcaves | Shifting Twisted Machinery released Sub. Machine Gun 2929 | -10/Subcaves | A swath of the cavern ceiling suddenly collapsed 3189 | -10/Subcaves | Shifting Twisted Machinery released Slug Cannon 3208 | -10/Subcaves | Shifting Twisted Machinery released Sub. Machine Gun 3537 | -10/Subcaves | Shifting Twisted Machinery released Sub. Power Source 3575 | -10/Subcaves | Shifting Twisted Machinery released Barrage Gun 3609 | -10/Subcaves | Build established: Scavenger-Mutant 3891 | -10/Subcaves | Entered Recycling 4198 | -8/Recycling | Core integrity fell below 20% 4219 | -8/Recycling | Destroyed by Y-45 Defender with Beam Rifle Last Messages --------------- Found 6 terminals. Downloaded coordinate data. 04048_ Acquired 73 matter. 04051_ Acquired 66 matter. 04052_ Dropped Lgt. Treads. 04055_ Acquired Lgt. Treads. 04152_ Connecting with Terminal... 04187_ Attempting to rewire B-36 Bruiser. 04192_ P-60 Hacker springs to life. 04193_ Attempting to rewire B-36 Bruiser. 04202_ R-06 Scavenger destroyed. 04204_ Critical hit (Burn: +37). 04211_ Destroyed Shock Rifle. 04211_ P-60 Hacker suffers critical hit (Destroy). 04211_ Destroyed Imp. Heat Sink. 04211_ P-60 Hacker knocked back. 04214_ P-60 Hacker destroyed. 04215_ R-06 Scavenger collects Com. Wheel. 04215_ R-06 Scavenger collects Lgt. Ion Engine. 04216_ S-10 Pest destroyed. Map ----- +----------------------------------------------------+ | ?????????????????????????????????????????????????? | | ?????????????????????????????????????????????????? | | ##???????????????????????????????????????????????? | | #???????????????????????????????????????????????? | | #???????????????????????????????????????????????? | | ######??????????????????????????????????????????? | | ##"T"####?????##????????????????????????????????? | | + #?##### ########????????????????????????? | | # ### #????????????????????????? | | /# """ "## #????????????????????????? | | !+ """ T## #????????????????????????? | | # """ "## #?????????????##########?? | | # ### #?????????????# ### | | + #?# #?????????????# """ """ | | =#### #?# #?????????????# """ T" | | #??# #?# #?????????????# """ """ | | ##??# #?# #?????????????# ### | | ????#### #?# #?????######### """ #?? | | ???????# #?# #?????# + """ #?? | | ???????# #?# #?????# ####### """ #?? | | ####???# #?#######+############ #?????# #?? | | "T"##### ######## #?????###+##+##### | | + #############??????# | | """ # ######## # b########## | | """ # ######?# # !i + | | """ # # ### Y ! @ ###########/######## | | + # #"" # % [#??????????????????? | | """ # # #"Y # agb u%t#??????????????????? | | """ # # #"" # r r lh #??????????????????? | | """ # # ### #Y%Y=d l #??????????????????? | | # # #?# ;%] tap #??????????????????? | | ###### # #?# ###########??????????????????? | | ?????# # ##" ????????????????????????????? | | ???### # ### #????????????????????????????? | | ???#"" # #?# #????????????????????????????? | | ???#"Y # #?# #????????????????????????????? | | ???#"" + #?# #????????????????????????????? | | ###### # #?? ?????????????????????????????? | | ??# ## ###??????????????????????????????????? | | ?# #?##????????????????????????????????????? | | ?# #????????? ##???????????????????????????? | | # ####### #???????????????????????????? | | # #???????????????????????????? | | + #???????????????????????????? | | # #???????????????????????????? | | ## ######## #???????????????????????????? | | ??# #????????? #????????????????????????????? | | ??# #???????????#????????????????????????????? | | ???# #????????????????????????????????????????? | | ???# #????????????????????????????????????????? | +----------------------------------------------------+ Best States ------------- Heat Dissipation 25 Energy Generation 10 Energy Capacity 250 Matter Stores 300 Matter Capacity 300 Sight Range 16 Terrain Scan Density 10 Armor Coverage 800 Evasion (%) 50 Recoil Reduction 2 Item Schematics ----------------- None Robot Schematics ------------------ None Fabricated ------------ Nothing Alien Tech Used ----------------- None Achievements -------------- None Challenges ------------ None Game ------ Seed GravitonCoordinationPod Manual? 0 Play Time 00:25:43 Cumulative 57.1 hours Start 2025.01.12 @ 22:53:19 End 2025.01.12 @ 23:16:44 Sessions 1 Manual Loads 0 Difficulty Rogue Special Mode None Game No. 114 Rogue 114 Adventurer 0 Explorer 0 Win Type - Total 0 Types 0/0/0/0/0/0/0/0/0 Lore% 20 Gallery% 35 Achievement% 30 Wizard Run 0 Options --------- Layout 0 ASCII 0 Keyboard 0 Movement Mouse Keybinds 0 Fullscreen 1 Font 24/Smallcaps Map View 76x50 Zoom Use 0% Tactical HUD 1 Map Filters NONE Filters NONE Steam 1 RUN: d94ce99d-13d8-4e4b-8c42-fb4b15db9ca5